bitfinex-derivatives/quotes_ETHF0:USTF0_20250104
["timestamp","ask_amount","ask_price","bid_price","bid_amount"]
[1735994321457,0.27517,3635.4,3635.3,3.2078]
[1735994321662,2.48341146,3635.4,3635.3,3.2078]
[1735994321963,2.48341146,3635.4,3634.6,6.3616903]
[1735994321964,2.89617146,3635.4,3634.6,6.3616903]
[1735994322262,2.20824146,3634.9,3634.6,6.3616903]
[1735994322468,2.48345146,3634.9,3634.8,3.2078]
[1735994322757,0.27522,3634.7,3634.6,6.3616903]
[1735994323164,0.27523,3634.5,3634.4,4.3109]
[1735994323355,2.48347146,3634.5,3634.4,4.3109]
[1735994323554,2.20824146,3634.5,3633.9,4.3473]
[1735994323764,1.1806,3634.6,3634.0,0.27527]
[1735994323765,2.20824146,3634.2,3634.0,0.27527]
[1735994323966,2.48350146,3634.2,3634.0,0.27527]
[1735994325068,0.27525,3634.3,3633.9,4.3473]
[1735994325257,2.20824146,3634.5,3634.2,0.27526]
[1735994325566,0.27524,3634.4,3634.3,3.48305]
[1735994325760,0.27524,3634.4,3634.3,3.2078]
[1735994326453,0.27523,3634.5,3634.4,0.27524]
[1735994326654,0.27523,3634.5,3634.3,3.48304]
[1735994328260,1.45583,3634.6,3634.4,0.27524]
[1735994328461,0.27523,3634.5,3634.4,0.27524]
[1735994329167,1.45583,3634.6,3634.5,0.27523]
[1735994329672,1.45583,3634.6,3634.5,1.48093]
[1735994329868,1.1806,3634.6,3634.5,1.48093]
[1735994330061,2.20824146,3634.8,3634.5,1.2057]
[1735994330267,2.20824146,3635.1,3634.7,3.2078]
[1735994330567,2.20824146,3635.1,3635.0,0.27519]
[1735994331161,2.48343146,3635.1,3635.0,0.27519]
[1735994331664,1.1085,3635.6,3634.7,3.2078]
[1735994331865,3.2078,3635.7,3635.5,0.27515]
[1735994331866,0.27515,3635.7,3635.5,0.27515]
[1735994332469,0.27515,3635.7,3635.5,1.44905]
[1735994332975,0.27515,3635.6,3635.5,1.1739]
[1735994333269,3.33894146,3635.8,3635.5,1.44906]
[1735994333471,3.61408146,3635.8,3635.5,1.44906]
[1735994333667,0.27515,3635.7,3635.5,1.1739]
[1735994334269,2.20824146,3636.1,3635.5,1.1739]
[1735994334469,2.20824146,3636.1,3636.0,0.27512]
[1735994334779,2.20824146,3636.1,3636.0,3.48292]
[1735994335264,1.1689,3636.3,3636.2,0.2751]
[1735994335874,1.1689,3636.3,3636.1,0.2751]
[1735994336583,1.1689,3636.3,3636.1,0.27511]
[1735994336584,1.444,3636.3,3636.1,0.27511]
[1735994337070,1.1689,3636.3,3636.1,0.27511]
[1735994337679,1.1689,3636.3,3636.2,0.2751]
[1735994338378,1.1689,3636.3,3636.0,3.2078]
[1735994338579,1.1689,3636.3,3636.2,0.2751]
[1735994339274,1.1689,3636.3,3635.6,4.3432]
[1735994339484,0.27513,3635.9,3635.7,0.27514]
[1735994339880,0.27514,3635.8,3635.6,4.61835]
[1735994340085,1.1689,3636.3,3635.6,4.3432]
[1735994340279,2.20824146,3636.1,3635.6,4.3432]
[1735994340481,0.27513,3635.9,3635.7,0.27514]
[1735994340679,0.27513,3635.9,3635.8,0.27513]
[1735994341384,2.20824146,3636.1,3635.6,4.3432]
[1735994342382,3.33324146,3636.2,3636.1,0.27511]
[1735994342587,3.60834146,3636.2,3636.1,0.27511]
[1735994342881,3.60834146,3636.2,3636.0,0.27511]
[1735994343381,3.60834146,3636.2,3636.1,0.27511]
[1735994343888,2.20824146,3636.2,3636.0,3.2078]
[1735994344087,0.27511,3636.1,3636.0,3.2078]
[1735994344287,0.27511,3636.1,3636.0,3.48292]
[1735994344980,2.20824146,3636.2,3636.1,0.27511]
[1735994345182,2.48335146,3636.2,3636.0,3.48292]
[1735994345788,0.27511,3636.1,3636.0,3.2078]
[1735994345976,2.48335146,3636.2,3636.0,3.48292]
[1735994346386,2.20824146,3636.2,3636.0,3.48292]
[1735994346590,0.27511,3636.1,3636.0,3.48292]
[1735994346785,0.27511,3636.1,3636.0,3.2078]
[1735994349389,2.20824146,3636.2,3635.6,4.3432]
[1735994349592,2.48337146,3635.9,3635.7,0.27514]
[1735994349893,2.20824146,3635.9,3635.6,4.3432]
[1735994350087,2.20824146,3635.9,3635.8,0.27513]
[1735994350285,2.20824146,3635.9,3635.6,4.3432]
[1735994350488,2.48337146,3635.9,3635.7,0.27514]
[1735994350693,0.27512,3636.0,3635.8,0.27513]
[1735994350883,3.60835146,3636.2,3636.0,0.27512]
[1735994351087,3.60835146,3636.2,3636.0,3.2078]
[1735994351988,3.33324146,3636.2,3636.0,3.48291]
[1735994352188,0.27511,3636.1,3636.0,3.48291]
[1735994352391,3.60835146,3636.2,3636.1,0.27511]
[1735994352589,3.60835146,3636.2,3636.0,3.2078]
[1735994352897,2.48335146,3636.2,3636.1,0.27511]
[1735994353192,1.2086,3636.6,3636.5,0.27508]
[1735994353587,1.2086,3636.6,3636.1,1.1491]
[1735994353787,1.2086,3636.6,3636.4,0.27509]
[1735994353788,0.27508,3636.5,3636.4,0.27509]
[1735994353987,2.48332146,3636.5,3636.4,0.27509]
[1735994354389,0.27509,3636.4,3636.2,2.7173]
[1735994354583,0.2751,3636.3,3636.2,2.4422]
[1735994355891,0.2751,3636.3,3636.2,1.1704]
[1735994356085,0.27511,3636.1,3636.0,3.2078]
[1735994356399,2.48335146,3636.1,3636.0,3.2078]
[1735994356594,0.27513,3635.9,3635.8,0.27513]
[1735994356896,0.27513,3635.9,3635.6,2.3357]
[1735994356897,1.2387,3636.0,3635.6,2.3357]
[1735994357091,0.27514,3635.7,3635.6,2.61085]
[1735994357291,0.27514,3635.8,3635.7,0.27514]
[1735994357592,0.27514,3635.8,3635.6,2.3357]
[1735994357593,0.27513,3635.9,3635.8,0.27513]
[1735994357895,0.27513,3635.9,3635.6,2.3357]
[1735994357896,0.27514,3635.7,3635.6,1.1475]
[1735994359593,0.27514,3635.7,3635.6,1.1483]
[1735994360283,0.27514,3635.7,3635.6,0.0008]
[1735994360683,1.41364,3635.7,3635.6,0.0008]
[1735994360887,2.65434,3635.7,3635.6,0.0008]
[1735994363794,5.86214,3635.7,3635.6,0.0008]
[1735994364495,2.65434,3635.7,3635.6,0.0008]
[1735994365000,1.41364,3635.7,3635.6,0.0008]
[1735994365195,2.20824146,3635.8,3635.7,0.27514]
[1735994365396,2.48338146,3635.8,3635.7,1.1894]
[1735994369196,2.20824146,3635.8,3635.6,0.0008]
[1735994369398,0.27514,3635.7,3635.6,0.0008]
[1735994370906,0.27519,3635.1,3634.9,1.218]
[1735994371101,1.40019,3635.1,3634.8,6.3616903]
[1735994371497,0.27521,3634.8,3634.7,4.23951143]
[1735994372600,2.48345146,3634.8,3634.7,4.23951143]
[1735994373094,2.20824146,3634.8,3634.5,3.2078]
[1735994373299,0.27522,3634.6,3634.5,3.2078]
[1735994379709,1.40022,3634.6,3634.5,3.2078]
[1735994382715,0.27525,3634.3,3634.2,1.2571]
[1735994382916,0.27525,3634.3,3634.2,4.4649]
[1735994383813,0.27525,3634.3,3634.2,4.74016]
[1735994384013,0.27525,3634.3,3634.2,4.4649]
[1735994384808,0.27525,3634.3,3634.2,4.74016]
[1735994385009,1.125,3634.5,3634.2,4.4649]
[1735994385210,0.27524,3634.4,3634.3,0.27524]
[1735994385816,1.2731,3634.7,3634.3,1.3265]
[1735994386016,2.20824146,3635.1,3634.6,3.2078]
[1735994386314,2.48343146,3635.1,3635.0,3.2078]
[1735994386707,2.48343146,3635.1,3635.0,3.48299]
[1735994386920,2.20824146,3635.1,3635.0,3.48299]
[1735994387120,0.27518,3635.2,3635.1,0.27518]
[1735994387314,0.27518,3635.2,3635.1,2.82108]
[1735994387516,0.27518,3635.2,3635.1,2.5459]
[1735994388320,0.27518,3635.3,3635.1,2.82108]
[1735994388514,2.20824146,3635.4,3635.1,2.5459]
[1735994388713,0.27518,3635.2,3635.1,2.5459]
[1735994389219,0.27518,3635.2,3635.1,2.5467]
[1735994389423,1.125,3635.3,3635.1,2.5467]
[1735994389620,1.40017,3635.3,3635.1,2.82188]
[1735994390321,1.125,3635.3,3635.1,2.5467]
[1735994390517,0.27518,3635.2,3635.1,2.5467]
[1735994392226,0.27518,3635.2,3635.1,1.2423]
[1735994392621,0.27518,3635.2,3635.1,0.0008]
[1735994392815,2.85108,3635.2,3635.1,0.0008]
[1735994393225,7.85108,3635.2,3635.1,0.0008]
[1735994393415,2.85108,3635.2,3635.1,0.0008]
[1735994393616,7.85108,3635.2,3635.1,0.0008]
[1735994394325,0.27524,3634.4,3634.3,4.23951143]
[1735994394516,2.20824146,3634.4,3634.1,6.3616903]
[1735994394716,2.48351146,3634.0,3633.9,7.29632524]
[1735994395123,43.00824146,3634.0,3633.6,4.24318973]
[1735994395320,2.48353146,3633.7,3633.6,4.24318973]
[1735994395521,3.60853146,3633.7,3633.6,4.24318973]
[1735994396731,0.27532,3633.4,3633.3,2.4745]
[1735994397225,3.33324146,3633.7,3633.3,2.4745]
[1735994397427,2.20824146,3633.7,3633.6,0.2753]
[1735994398129,1.125,3633.8,3633.6,0.2753]
[1735994398327,2.14608144,3634.0,3633.4,3.2078]
[1735994398528,1.125,3633.9,3633.8,3.2078]
[1735994398830,1.40028,3633.9,3633.8,3.2078]
[1735994399227,1.125,3633.9,3633.3,5.6823]
[1735994399525,0.27532,3633.4,3633.3,5.6823]
[1735994400928,0.27532,3633.4,3633.3,2.4745]
[1735994405022,3.2078,3633.8,3633.3,2.4745]
[1735994405226,0.2753,3633.6,3633.3,2.74982]
[1735994405829,0.27529,3633.7,3633.3,2.74982]
[1735994406031,0.27531,3633.6,3633.3,2.74982]
[1735994406231,0.27531,3633.5,3633.3,2.4745]
[1735994407629,0.27532,3633.4,3633.3,2.4745]
[1735994418139,1.125,3633.5,3633.3,2.4745]
[1735994418339,1.40031,3633.5,3633.3,2.74982]
[1735994418535,0.27531,3633.5,3633.3,2.74982]
[1735994418835,1.125,3633.9,3633.3,2.4745]
[1735994419030,0.27526,3634.2,3634.0,0.27526]
[1735994419230,0.27526,3634.2,3634.1,2.5378]
[1735994420240,3.60850146,3634.2,3634.1,2.5378]
[1735994424237,1.40025,3634.3,3634.1,2.5378]
[1735994424442,1.40025,3634.3,3634.1,2.81306]
[1735994424743,1.125,3634.3,3634.1,2.5378]
[1735994424928,0.27526,3634.2,3634.1,2.81306]
[1735994425131,0.27526,3634.2,3634.1,2.5378]
[1735994425336,1.125,3634.3,3634.1,2.5378]
[1735994425645,0.27526,3634.2,3634.1,6.02086]
[1735994425940,2.48350146,3634.2,3634.1,5.7456]
[1735994426136,2.48350146,3634.2,3634.1,3.2078]
[1735994426341,2.20824146,3634.2,3633.5,3.4831]
[1735994426645,0.27529,3633.7,3633.6,0.2753]
[1735994428647,0.2753,3633.6,3633.5,3.4831]
[1735994428945,0.2753,3633.7,3633.6,0.2753]
[1735994431241,1.2537,3634.1,3633.5,3.2078]
[1735994431546,0.27529,3633.8,3633.7,0.27529]
[1735994432045,1.2537,3634.1,3633.5,3.4831]
[1735994432250,1.2537,3634.1,3633.6,0.2753]
[1735994432746,1.2537,3634.1,3633.5,3.2078]
[1735994432946,1.2537,3634.1,3633.6,0.2753]
[1735994433138,1.2537,3634.1,3633.5,3.2078]
[1735994433339,0.27529,3633.8,3633.6,0.2753]
[1735994433540,0.27529,3633.8,3633.5,3.2078]
[1735994433744,0.27529,3633.8,3633.7,0.27529]
[1735994434043,1.2537,3634.1,3633.5,3.2078]
[1735994434246,0.27528,3633.9,3633.8,0.27528]
[1735994434645,1.2537,3634.1,3633.5,3.2078]
[1735994434949,0.27528,3633.9,3633.8,0.27528]
[1735994436038,0.27527,3634.1,3634.0,0.27527]
[1735994436243,0.27527,3634.1,3634.0,3.48307]
[1735994436753,1.40026,3634.2,3634.1,0.27526]
[1735994436941,2.20824146,3634.5,3634.1,1.2777]
[1735994437144,1.125,3634.5,3634.1,1.2777]
[1735994437651,1.125,3634.5,3634.3,0.27524]
[1735994437944,1.40024,3634.5,3634.4,0.27524]
[1735994438152,1.125,3634.5,3634.4,0.27524]
[1735994438348,3.2078,3634.7,3634.4,0.27524]
[1735994438546,0.27523,3634.5,3634.4,0.27524]
[1735994439045,0.27523,3634.6,3634.5,0.27523]
[1735994439347,0.27523,3634.6,3634.4,0.27524]
[1735994439547,0.27523,3634.6,3634.1,1.2777]
[1735994439737,3.2078,3634.7,3634.1,1.2777]
[1735994439945,3.48302,3634.7,3634.5,0.27523]
[1735994440140,0.27523,3634.5,3634.2,0.27526]
[1735994440341,0.27523,3634.6,3634.4,0.27523]
[1735994442047,0.27523,3634.6,3634.4,0.27524]
[1735994442754,2.20824146,3634.8,3634.4,0.27524]
[1735994442755,0.27523,3634.5,3634.4,0.27524]
[1735994443046,0.27524,3634.4,3634.1,1.2777]
[1735994444351,3.33324146,3634.8,3634.3,0.27524]
[1735994444555,0.27524,3634.4,3634.3,0.27524]
[1735994445147,0.27524,3634.5,3634.3,0.27524]
[1735994445453,0.27524,3634.5,3634.1,1.2777]
[1735994445652,0.27524,3634.5,3634.3,0.27524]
[1735994446055,0.27524,3634.5,3634.1,1.2777]
[1735994446056,0.27523,3634.6,3634.4,0.27524]
[1735994446256,0.27523,3634.5,3634.4,0.27524]
[1735994447554,0.27523,3634.6,3634.4,0.27524]
[1735994447753,0.27523,3634.5,3634.4,0.27524]
[1735994448244,3.33324146,3634.8,3634.4,0.27524]
[1735994448450,1.246,3634.9,3634.2,1.3104]
[1735994448648,0.27522,3634.7,3634.6,0.27522]
[1735994449261,0.27522,3634.7,3634.6,0.27602]
[1735994449450,0.27522,3634.7,3634.6,0.0008]
[1735994454447,2.83692,3634.7,3634.6,0.0008]
[1735994454652,2.83692,3634.7,3633.8,9.69941255]
[1735994454653,0.27528,3633.9,3633.8,9.69941255]
[1735994455157,0.27528,3633.9,3633.8,9.97470255]
[1735994455961,0.27528,3633.9,3633.8,1.2217]
[1735994457658,0.27531,3633.5,3633.4,6.36892512]
[1735994459059,2.20824146,3633.7,3633.3,7.0747]
[1735994459359,0.2753,3633.6,3633.5,0.2753]
[1735994462862,3.53364146,3634.0,3633.3,7.0747]
[1735994463163,3.53364146,3634.0,3633.7,3.2078]
[1735994463164,1.3254,3634.0,3633.7,3.2078]
[1735994463371,0.27529,3633.8,3633.7,3.48309]
[1735994464260,0.27528,3633.9,3633.8,0.27528]
[1735994464459,0.27529,3633.8,3633.7,3.2078]
[1735994465462,3.53364146,3634.0,3633.5,0.27531]
[1735994465666,0.2753,3633.6,3633.5,0.27531]
[1735994465860,0.27526,3634.2,3633.5,0.96359]
[1735994466172,2.14608144,3634.3,3634.1,0.27526]
[1735994466173,0.27525,3634.3,3634.1,0.27526]
[1735994466465,3.2078,3634.8,3634.0,3.2078]
[1735994466466,1.2796,3634.9,3634.2,2.5647]
[1735994466674,0.27524,3634.5,3634.4,3.48304]
[1735994466967,0.27524,3634.5,3634.4,3.2078]
[1735994467363,0.27525,3634.3,3634.2,1.2691]
[1735994467969,2.89633146,3634.5,3634.0,3.2078]
[1735994468175,0.27526,3634.1,3634.0,9.58455081]
[1735994469562,0.27526,3634.1,3634.0,3.2078]
[1735994470875,4.76054146,3634.2,3634.0,3.2078]
[1735994471073,5.03580146,3634.2,3634.0,3.48307]
[1735994471372,0.27526,3634.1,3634.0,3.2078]
[1735994471768,0.27526,3634.1,3633.9,0.27527]
[1735994471969,1.125,3634.0,3633.6,9.58455081]
[1735994472269,0.2753,3633.6,3633.5,6.37675081]
[1735994472875,1.6111,3633.6,3633.5,6.37675081]
[1735994473773,0.27531,3633.5,3632.9,6.65210081]
[1735994473968,0.27534,3633.1,3632.9,6.65210081]
[1735994474273,2.20824146,3633.4,3632.9,6.65210081]
[1735994474274,0.27534,3633.2,3633.0,0.27534]
[1735994475280,0.27533,3633.3,3633.0,0.27534]
[1735994475484,1.50461,3633.5,3633.2,3.2078]
[1735994475675,0.27534,3633.1,3632.8,3.48315]
[1735994475875,0.27534,3633.2,3632.9,0.27535]
[1735994476071,2.20824146,3633.4,3632.9,0.27535]
[1735994476278,0.27534,3633.1,3632.9,0.27535]
[1735994476591,0.27533,3633.2,3633.0,0.27535]
[1735994477083,2.5576,3633.5,3632.8,3.2078]
[1735994477283,2.5576,3633.5,3633.2,3.2078]
[1735994477481,0.27532,3633.4,3633.3,1.2342]
[1735994479385,0.27532,3633.4,3633.3,1.235]
[1735994480989,2.48356146,3633.4,3633.3,0.0008]
[1735994486393,3.60756146,3633.4,3633.3,0.0008]
[1735994494392,5.76953243,3633.4,3633.3,0.0008]
[1735994495196,0.27538,3632.5,3632.2,1.2295]
[1735994495395,0.2754,3632.4,3632.3,1.3163]
[1735994496498,1.124,3632.5,3632.4,0.27539]
[1735994496691,1.124,3632.5,3632.4,3.48319]
[1735994496891,1.39938,3632.5,3632.4,3.48319]
[1735994497100,1.39938,3632.5,3632.4,3.2078]
[1735994497597,1.124,3632.5,3632.4,3.2078]
[1735994497897,1.124,3632.5,3632.4,3.48319]
[1735994498699,0.27538,3632.6,3632.4,3.48319]
[1735994499299,0.27538,3632.6,3632.4,3.2078]
[1735994499600,1.124,3633.2,3632.4,3.89628]
[1735994499797,1.39933,3633.2,3633.0,0.27534]
[1735994499997,1.39933,3633.2,3633.1,3.7445]
[1735994500502,0.27532,3633.3,3633.1,3.7445]
[1735994501603,2.20824146,3633.4,3633.1,3.7445]
[1735994501904,0.27533,3633.2,3633.1,3.7445]
[1735994502601,0.27533,3633.2,3633.1,2.4665]
[1735994503701,0.27535,3633.0,3632.9,3.2078]
[1735994503895,2.20824146,3633.0,3632.7,2.5148]
[1735994504096,0.27536,3632.8,3632.7,1.2661]
[1735994505401,0.2754,3632.3,3632.2,7.62545081]
[1735994505703,2.48364146,3632.3,3632.2,7.62545081]
[1735994506097,2.48364146,3632.3,3632.2,1.2487]
[1735994506402,2.20824146,3632.3,3632.2,1.52411]
[1735994506800,2.48364146,3632.3,3632.2,2.84491]
[1735994506993,2.20824146,3632.3,3632.2,2.84491]
[1735994507198,3.33224146,3632.6,3632.3,0.2754]
[1735994507407,0.27539,3632.4,3632.3,0.2754]
[1735994508400,3.33224146,3632.6,3632.2,2.5695]
[1735994508607,2.20824146,3632.6,3632.5,3.48318]
[1735994508904,2.48362146,3632.6,3632.5,3.2078]
[1735994514608,2.20824146,3632.6,3632.5,3.2078]
[1735994514802,2.48362146,3632.6,3632.5,3.2078]
[1735994516106,2.20824146,3632.6,3632.3,4.25334515]
[1735994516307,0.27539,3632.4,3632.3,7.46114515]
[1735994518310,0.27539,3632.4,3632.3,4.25334515]
[1735994518504,0.2754,3632.3,3632.2,4.25334515]
[1735994518705,2.48364146,3632.3,3632.2,4.25334515]
[1735994519104,43.28364146,3632.3,3632.2,4.25334515]
[1735994519417,2.48364146,3632.3,3632.2,4.25334515]
[1735994520003,0.27545,3631.6,3631.5,8.79024515]
[1735994521205,1.2708,3631.8,3631.5,8.79024515]
[1735994521411,0.27545,3631.7,3631.5,8.79024515]
[1735994521611,0.27545,3631.7,3631.5,4.5369]
[1735994521811,0.27545,3631.7,3631.5,4.81236]
[1735994522012,0.27545,3631.6,3631.5,4.5369]
[1735994522612,2.20824146,3631.7,3631.5,4.5369]
[1735994522813,0.27543,3631.9,3631.5,4.5369]
[1735994523013,0.27544,3631.8,3631.6,0.27545]
[1735994523611,2.16367196,3632.2,3631.5,4.5369]
[1735994523817,2.43908196,3632.2,3632.1,3.2078]
[1735994524013,0.27541,3632.2,3632.1,3.48321]
[1735994524216,0.27541,3632.2,3632.1,3.2086]
[1735994524814,1.58221,3632.2,3632.1,0.0008]
[1735994525413,0.27542,3632.0,3631.9,3.50281515]
[1735994525715,0.27542,3632.0,3631.4,6.33212716]
[1735994525716,7.62428292,3632.0,3631.4,6.33212716]
[1735994525917,48.69974292,3631.5,3631.4,6.33212716]
[1735994526116,48.69974292,3631.5,3631.4,6.38278405]
[1735994527219,0.27547,3631.3,3631.2,8.51037874]
[1735994527415,0.27547,3631.3,3631.2,4.92720375]
[1735994527814,0.27547,3631.3,3630.1,3.2078]
[1735994527815,0.27554,3630.4,3630.1,3.2078]
[1735994528021,2.20824146,3630.4,3630.1,3.2078]
[1735994528209,2.20824146,3630.4,3629.5,3.2078]
[1735994528514,0.27558,3630.0,3629.9,3.2078]
[1735994529113,0.27559,3629.9,3629.5,3.48341]
[1735994529323,2.20824146,3629.8,3629.5,3.48341]
[1735994529820,5.36628765,3630.6,3629.5,3.2078]
[1735994530018,2.20824146,3630.5,3630.0,0.27557]
[1735994530221,2.15848765,3630.6,3629.9,3.48338]
[1735994530222,2.48380146,3630.2,3629.9,3.48338]
[1735994530516,2.20824146,3630.2,3629.9,3.2078]
[1735994530924,2.20824146,3630.2,3630.1,0.27557]
[1735994532016,2.20824146,3630.8,3630.1,5.0]
[1735994532215,4.36672911,3631.1,3631.0,0.2755]
[1735994532615,4.36672911,3631.1,3630.9,0.2755]
[1735994533010,4.36672911,3631.1,3630.8,4.0002]
[1735994533217,4.36672911,3631.1,3630.9,0.2755]
[1735994533416,0.27548,3631.3,3630.9,0.27551]
[1735994533618,0.27548,3631.3,3631.0,0.27549]
[1735994533823,2.20824146,3631.4,3631.1,3.2078]
[1735994534024,2.48371146,3631.4,3631.2,0.27548]
[1735994534226,2.48371146,3631.4,3631.1,3.48329]
[1735994534227,0.27548,3631.3,3631.1,3.48329]
[1735994534621,2.20824146,3631.4,3631.1,3.2078]
[1735994534825,2.20824146,3631.4,3631.2,0.27548]
[1735994535027,2.48371146,3631.4,3631.2,0.27548]
[1735994535625,2.48371146,3631.4,3631.1,3.2078]
[1735994535924,2.48371146,3631.4,3631.2,0.27548]
[1735994535925,2.20824146,3631.4,3631.2,0.27548]
[1735994536727,2.48371146,3631.4,3631.2,0.27548]
[1735994537225,2.20824146,3631.4,3631.2,0.27548]
[1735994538028,2.48371146,3631.4,3631.1,3.48329]
[1735994539123,2.48371146,3631.4,3631.1,3.2078]
[1735994539321,2.20824146,3631.4,3631.1,3.2078]
[1735994539523,2.20824146,3631.4,3631.2,0.27548]
[1735994539718,2.20824146,3631.4,3631.1,3.2078]
[1735994539923,2.20824146,3631.4,3631.3,0.27547]
[1735994540129,2.20824146,3631.4,3631.1,3.2078]
[1735994540318,0.27551,3630.9,3630.8,2.6645]
[1735994542334,0.27554,3630.4,3630.3,3.2078]
[1735994542629,2.48378146,3630.4,3630.3,3.2078]
[1735994543227,2.20824146,3630.4,3630.1,0.00167384]
[1735994543427,0.27556,3630.2,3630.1,0.00167384]
[1735994550828,1.39956,3630.2,3630.1,0.00167384]
[1735994551629,0.27556,3630.2,3630.1,0.00167384]
[1735994554532,0.27556,3630.2,3630.1,0.00247384]
[1735994558037,0.27556,3630.2,3630.1,3.84e-06]
[1735994558235,2.48380146,3630.2,3630.1,3.84e-06]
[1735994558631,0.27556,3630.2,3630.1,3.84e-06]
[1735994558838,0.27561,3629.5,3629.4,1.2992]
[1735994559140,3.60785146,3629.5,3629.4,1.2992]
[1735994562842,2.20824146,3629.9,3629.4,1.2992]
[1735994563240,2.48385146,3629.6,3629.4,1.2992]
[1735994563433,2.20824146,3629.6,3629.4,1.2992]
[1735994563742,0.27561,3629.5,3629.4,1.2992]
[1735994565236,0.27561,3629.5,3629.1,3.2078]
[1735994565237,0.27563,3629.2,3629.1,3.2078]
[1735994565443,3.60787146,3629.2,3629.1,3.2078]
[1735994566143,3.60787146,3629.2,3629.1,4.539]
[1735994566543,3.60787146,3629.2,3629.1,1.3312]
[1735994578851,5.41604146,3629.9,3629.1,1.3312]
[1735994579044,2.20824146,3629.9,3629.3,3.2078]
[1735994579245,0.27559,3629.9,3629.7,3.2078]
[1735994579445,0.27559,3629.9,3629.8,1.2654]
[1735994579756,0.27558,3630.0,3629.8,1.2654]
[1735994579943,0.27558,3630.0,3629.9,1.2657]
[1735994581349,1.124,3630.3,3629.9,1.2657]
[1735994581555,0.27557,3630.0,3629.9,1.2657]
[1735994582053,0.27557,3630.0,3629.9,2.5745]
[1735994582248,1.124,3630.3,3629.9,2.5745]
[1735994582249,5.41604146,3630.5,3629.9,2.5745]
[1735994582453,2.15848765,3630.7,3630.2,3.2078]
[1735994582650,0.27555,3630.4,3630.2,3.2078]
[1735994582951,0.27555,3630.3,3630.2,3.2078]
[1735994584156,2.20824146,3630.5,3630.2,3.2086]
[1735994584350,0.27555,3630.4,3630.2,3.2086]
[1735994584549,2.20824146,3630.5,3630.2,3.2086]
[1735994584749,0.27555,3630.4,3630.2,3.2086]
[1735994585055,1.39953,3630.6,3630.2,3.2086]
[1735994585255,0.27554,3630.5,3630.2,3.2086]
[1735994585749,0.27555,3630.3,3630.2,0.0008]
[1735994587352,3.33224146,3630.5,3630.2,0.0008]
[1735994587545,2.15848765,3630.6,3630.2,0.0008]
[1735994587751,2.15848765,3630.7,3630.2,0.0008]
[1735994587954,0.27553,3630.6,3630.3,0.27555]
[1735994588154,0.27553,3630.6,3630.3,0.27554]
[1735994588659,0.27554,3630.4,3630.2,3.48415]
[1735994588952,2.15848765,3630.7,3630.2,3.48415]
[1735994589153,0.27555,3630.3,3630.2,3.48415]
[1735994589359,0.27555,3630.3,3630.2,3.2086]
[1735994589851,0.27555,3630.3,3630.2,0.0008]
[1735994590156,0.27555,3630.3,3630.2,3.2086]
[1735994590356,2.20824146,3630.3,3629.9,2.5745]
[1735994590546,0.27557,3630.0,3629.9,2.5745]
[1735994590857,2.48381146,3630.0,3629.9,2.5745]
[1735994591752,0.27557,3630.0,3629.9,2.5745]
[1735994594063,1.124,3630.1,3629.9,2.5745]
[1735994594252,1.124,3630.1,3629.9,2.85008]
[1735994594848,1.39957,3630.1,3629.9,2.5745]
[1735994595657,1.124,3630.1,3629.9,2.85008]
[1735994595955,1.124,3630.1,3629.9,2.5745]
[1735994596565,1.39957,3630.1,3629.9,2.85008]
[1735994596763,1.124,3630.1,3629.9,2.85008]
[1735994597562,1.39957,3630.1,3629.9,2.5745]
[1735994597754,0.27557,3630.0,3629.9,2.5745]
[1735994598159,1.39957,3630.1,3629.9,2.5745]
[1735994598465,0.27557,3630.0,3629.9,2.5745]
[1735994600172,2.48381146,3630.0,3629.9,2.5745]
[1735994604376,2.48381146,3630.0,3629.9,1.2657]
[1735994605177,2.20824146,3630.0,3629.6,1.2781]
[1735994605372,2.20824146,3630.0,3629.6,2.5913]
[1735994605373,0.2756,3629.7,3629.6,2.5913]
[1735994606779,2.48384146,3629.7,3629.6,2.5913]
[1735994607571,2.48384146,3629.7,3629.6,1.3132]
[1735994610377,4.64441205,3629.7,3629.6,1.3132]
[1735994610577,0.27563,3629.3,3628.9,0.27565]
[1735994610784,0.27564,3629.1,3628.9,0.27565]
[1735994611482,0.27565,3629.0,3628.9,0.27565]
[1735994611679,0.27565,3629.0,3628.8,1.57276]
[1735994611880,2.20824146,3629.4,3628.8,1.2971]
[1735994612082,0.27566,3628.9,3628.8,1.57276]
[1735994612881,2.20824146,3629.4,3628.8,1.2971]
[1735994613286,0.27566,3628.9,3628.8,1.2971]
[1735994614182,0.27566,3628.9,3628.8,1.2979]
[1735994616088,0.27566,3628.9,3628.8,1.57356]
[1735994616790,0.27566,3628.9,3628.8,1.2979]
[1735994621290,2.16057059,3629.3,3628.8,1.2979]
[1735994621487,2.16057059,3629.3,3629.1,3.2078]
[1735994621691,0.09147059,3629.3,3629.2,0.27563]
[1735994622791,0.27562,3629.4,3629.3,0.27563]
[1735994623692,0.27562,3629.5,3629.3,0.27563]
[1735994623991,0.27562,3629.5,3629.4,1.53382]
[1735994628995,0.27562,3629.5,3629.4,1.2582]
[1735994629398,0.27562,3629.5,3628.8,1.2979]
[1735994629601,0.27566,3628.9,3628.8,1.2979]
[1735994631196,0.27566,3628.9,3628.8,1.57356]
[1735994633097,0.27566,3628.9,3628.8,1.2979]
[1735994633298,0.27566,3628.9,3628.8,1.57356]
[1735994634703,3.23773148,3629.4,3628.8,1.2979]
[1735994634899,0.27563,3629.3,3629.2,0.27563]
[1735994635100,3.23773148,3629.4,3629.1,0.27564]
[1735994635101,0.27564,3629.2,3629.1,0.27564]
[1735994635299,0.27565,3629.1,3629.0,0.27564]
[1735994635603,0.27566,3628.9,3628.8,1.57356]
[1735994635796,0.27565,3629.0,3628.9,0.27565]